[Event "FIDE WSTC Open 65 2025"]
[Site "Prague"]
[Date "2025.02.20"]
[Round "4.29"]
[White "Kiss, Attila"]
[Black "Jurek, Josef"]
[Result "1/2-1/2"]
[Annotator "ChessBase"]
[ECO "C03"]
[WhiteElo "2276"]
[BlackElo "2160"]
[PlyCount "27"]
[EventDate "2025.02.17"]
[EventType "team-tourn"]
[EventCountry "CZE"]
[SourceTitle "playchess.com"]
[Source "ChessBase"]
[SourceQuality "1"]
[TimeControl "40/5400+30:1800+30"]

1. e4 {[%emt 0:00:27]} e6 {[%emt 0:00:15]} 2. d4 {[%emt 0:00:28]} d5 {[%emt 0:00:12]} 3. Nd2 {[%emt 0:00:14]} Be7 {[%emt 0:00:31]} 4. e5 {[%emt 0:01:36]} c5 {[%emt 0:00:44]} 5. c3 {[%emt 0:00:29]} cxd4 {[%emt 0:00:37]} 6. cxd4 {[%emt 0:00:12]} Qb6 {[%emt 0:00:23]} 7. Ndf3 {[%emt 0:01:48]} Bb4+ {[%emt 0:00:36]} 8. Bd2 {[%emt 0:00:25]} Nc6 {[%emt 0:00:24]} 9. Bc3 {[%emt 0:24:02]} Bd7 {[%emt 0:08:28]} 10. a3 {[%emt 0:07:59]} Bxc3+ {[%emt 0:02:49]} 11. bxc3 {[%emt 0:00:02]} f6 {[%emt 0:20:10]} 12. exf6 {[%emt 0:03:09]} Nxf6 {[%emt 0:02:31]} 13. Bd3 {[%emt 0:00:07]} O-O {[%emt 0:03:15]} 14. Ne2 {[%emt 0:00:06]} 1/2-1/2

[Event "FIDE WSTC Open 65 2025"]
[Site "Prague"]
[Date "2025.02.20"]
[Round "4.30"]
[White "Hosticka, Frantisek"]
[Black "Nemeth, Zoltan"]
[Result "1/2-1/2"]
[Annotator "ChessBase"]
[ECO "C20"]
[WhiteElo "2059"]
[BlackElo "2192"]
[PlyCount "68"]
[EventDate "2025.02.17"]
[EventType "team-tourn"]
[EventCountry "CZE"]
[SourceTitle "playchess.com"]
[Source "ChessBase"]
[SourceQuality "1"]
[TimeControl "40/5400+30:1800+30"]

1. e4 {[%emt 0:00:02]} e5 {[%emt 0:04:31]} 2. Bb5 {[%emt 0:01:07]} Bc5 {[%emt 0:07:12]} 3. Nf3 {[%emt 0:00:30]} a6 {[%emt 0:15:54]} 4. Ba4 {[%emt 0:00:37]} b5 {[%emt 0:05:26]} 5. Bb3 {[%emt 0:00:11]} d6 {[%emt 0:00:31]} 6. c3 {[%emt 0:01:03]} Nf6 {[%emt 0:00:52]} 7. d3 {[%emt 0:02:34]} Qe7 {[%emt 0:02:37]} 8. Nbd2 {[%emt 0:03:19]} O-O {[%emt 0:01:33]} 9. O-O {[%emt 0:00:59]} Be6 {[%emt 0:01:34]} 10. Re1 {[%emt 0:09:21]} Nbd7 {[%emt 0:13:33]} 11. Nf1 {[%emt 0:04:35]} h6 {[%emt 0:00:40]} 12. Ng3 {[%emt 0:01:23]} Kh7 {[%emt 0:02:10]} 13. d4 {[%emt 0:02:35]} Bb6 {[%emt 0:00:45]} 14. h3 {[%emt 0:04:43]} Bxb3 {[%emt 0:00:11]} 15. Qxb3 {[%emt 0:02:12]} g6 {[%emt 0:00:17]} 16. a4 {[%emt 0:04:57]} c6 {[%emt 0:01:37]} 17. Be3 {[%emt 0:05:35]} Rab8 {[%emt 0:04:58]} 18. Qd1 {[%emt 0:05:38]} c5 {[%emt 0:03:58]} 19. a5 {[%emt 0:04:52]} Bc7 {[%emt 0:04:40]} 20. Qd2 {[%emt 0:01:20]} Ng8 {[%emt 0:03:18]} 21. Qd3 {[%emt 0:09:24]} Rfd8 {[%emt 0:05:18]} 22. b4 {[%emt 0:05:43]} c4 {[%emt 0:01:39]} 23. Qc2 {[%emt 0:01:35]} Nf8 {[%emt 0:02:29]} 24. d5 {[%emt 0:00:55]} Nd7 {[%emt 0:08:04]} 25. Rf1 {[%emt 0:03:44]} Rf8 {[%emt 0:00:19]} 26. Nh2 {[%emt 0:01:42]} Rbe8 {[%emt 0:02:02]} 27. Rae1 {[%emt 0:02:51]} Bb8 {[%emt 0:00:37]} 28. Ng4 {[%emt 0:00:13]} Ndf6 {[%emt 0:00:10]} 29. f3 {[%emt 0:00:15]} Nh5 {[%emt 0:00:02]} 30. Nxh5 {[%emt 0:00:20]} gxh5 {[%emt 0:00:01]} 31. Nh2 {[%emt 0:00:02]} Ba7 32. Qf2 {[%emt 0:00:05]} Bxe3 {[%emt 0:00:04]} 33. Qxe3 {[%emt 0:00:01]} f5 {[%emt 0:00:04]} 34. exf5 {[%emt 0:00:13]} Rxf5 1/2-1/2

[Event "FIDE WSTC Open 65 2025"]
[Site "Prague"]
[Date "2025.02.20"]
[Round "4.31"]
[White "Hardicsay, Peter"]
[Black "Groh, Jiri"]
[Result "1/2-1/2"]
[Annotator "ChessBase"]
[ECO "D53"]
[WhiteElo "2164"]
[BlackElo "1989"]
[PlyCount "34"]
[EventDate "2025.02.17"]
[EventType "team-tourn"]
[EventCountry "CZE"]
[SourceTitle "playchess.com"]
[Source "ChessBase"]
[SourceQuality "1"]
[TimeControl "40/5400+30:1800+30"]

1. d4 {[%emt 0:00:15]} d5 {[%emt 0:07:45]} 2. c4 {[%emt 0:00:11]} e6 {[%emt 0:00:09]} 3. Nc3 {[%emt 0:00:32]} Nf6 {[%emt 0:00:06]} 4. Bg5 {[%emt 0:00:31]} Be7 {[%emt 0:00:09]} 5. e3 {[%emt 0:00:42]} h6 {[%emt 0:00:14]} 6. Bh4 {[%emt 0:00:26]} O-O {[%emt 0:00:05]} 7. Qc2 {[%emt 0:01:46]} b6 {[%emt 0:00:38]} 8. cxd5 {[%emt 0:00:43]} exd5 {[%emt 0:01:58]} 9. Bd3 {[%emt 0:01:47]} Bb7 {[%emt 0:01:35]} 10. Nge2 {[%emt 0:03:18]} Nbd7 {[%emt 0:01:05]} 11. O-O {[%emt 0:00:46]} c5 {[%emt 0:01:23]} 12. Rad1 {[%emt 0:08:38]} Ne4 {[%emt 0:03:05]} 13. Bxe7 {[%emt 0:04:52]} Qxe7 {[%emt 0:00:06]} 14. Ng3 {[%emt 0:04:49]} Nxg3 {[%emt 0:02:14]} 15. hxg3 {[%emt 0:00:13]} Nf6 {[%emt 0:01:56]} 16. Rfe1 {[%emt 0:12:49]} a6 {[%emt 0:00:02]} 17. dxc5 {[%emt 0:00:12]} bxc5 {[%emt 0:00:01]} 1/2-1/2

[Event "FIDE WSTC Open 65 2025"]
[Site "Prague"]
[Date "2025.02.20"]
[Round "4.32"]
[White "Slechta, Karel"]
[Black "Glatt, Gabor"]
[Result "1/2-1/2"]
[Annotator "NA"]
[ECO "B83"]
[WhiteElo "1874"]
[BlackElo "2146"]
[PlyCount "51"]
[EventDate "2025.02.17"]
[EventType "team-tourn"]
[EventCountry "CZE"]
[SourceTitle "playchess.com"]
[Source "ChessBase"]
[SourceQuality "1"]
[TimeControl "40/5400+30:1800+30"]

1. e4 {[%emt 0:00:06]} c5 {[%emt 0:00:00]} 2. Nf3 {[%emt 0:00:11]} d6 {[%emt 0:00:00]} 3. d4 {[%emt 0:00:07]} cxd4 {[%emt 0:00:02]} 4. Nxd4 {[%emt 0:00:05]} Nf6 {[%emt 0:00:14]} 5. Nc3 {[%emt 0:00:04]} Nc6 {[%emt 0:00:20]} 6. Be2 {[%emt 0:03:13]} e6 {[%emt 0:02:30]} 7. Be3 {[%emt 0:02:55]} Be7 {[%emt 0:00:15]} 8. Qd2 {[%emt 0:02:58]} a6 {[%emt 0:03:25]} 9. f4 {[%emt 0:12:23]} Qc7 {[%emt 0:09:03]} 10. O-O-O {[%emt 0:04:32]} Bd7 {[%emt 0:12:56]} 11. g4 {[%emt 0:08:30]} Nxd4 {[%emt 0:04:36]} 12. Bxd4 {[%emt 0:05:49]} e5 {[%emt 0:06:30]} 13. Be3 {[%emt 0:00:31]} Bc6 {[%emt 0:00:15]} 14. Bf3 {[%emt 0:01:13]} Nd7 {[%emt 0:04:30]} 15. f5 {[%emt 0:09:26]} Rc8 {[%emt 0:04:30]} 16. h4 {[%emt 0:04:16]} b5 {[%emt 0:03:10]} 17. a3 {[%emt 0:03:24]} Nb6 {[%emt 0:00:36]} 18. Bxb6 {[%emt 0:05:12]} Qxb6 {[%emt 0:00:03]} 19. Kb1 {[%emt 0:02:18]} O-O {[%emt 0:02:19]} 20. g5 {[%emt 0:00:35]} Rfd8 {[%emt 0:02:47]} 21. Rhg1 {[%emt 0:01:28]} Qb7 {[%emt 0:04:44]} 22. h5 {[%emt 0:03:54]} Bf8 {[%emt 0:01:30]} 23. f6 {[%emt 0:10:08]} Rb8 {[%emt 0:01:47]} 24. Nd5 {[%emt 0:01:26]} Bxd5 {[%emt 0:00:50]} 25. Qxd5 {[%emt 0:00:10]} b4 {[%emt 0:01:21]} 26. Qxb7 {[%emt 0:00:26]} 1/2-1/2

[Event "FIDE WSTC Open 65 2025"]
[Site "Prague"]
[Date "2025.02.20"]
[Round "4.33"]
[White "Pribyl, Josef"]
[Black "Andreasen, Per Naesby"]
[Result "1/2-1/2"]
[Annotator "ChessBase"]
[ECO "B08"]
[WhiteElo "2184"]
[BlackElo "2233"]
[PlyCount "75"]
[EventDate "2025.02.17"]
[EventType "team-tourn"]
[EventCountry "CZE"]
[SourceTitle "playchess.com"]
[Source "ChessBase"]
[SourceQuality "1"]
[TimeControl "40/5400+30:1800+30"]

1. d4 {[%emt 0:00:01]} g6 {[%emt 0:00:08]} 2. e4 {[%emt 0:00:12]} Bg7 {[%emt 0:00:28]} 3. Nc3 {[%emt 0:00:19]} d6 {[%emt 0:00:20]} 4. Nf3 {[%emt 0:00:34]} Nf6 {[%emt 0:00:58]} 5. Be2 {[%emt 0:00:07]} O-O {[%emt 0:00:35]} 6. O-O {[%emt 0:00:04]} Bg4 {[%emt 0:00:53]} 7. Be3 {[%emt 0:00:03]} Nc6 {[%emt 0:01:01]} 8. Qd2 {[%emt 0:00:13]} e5 {[%emt 0:01:11]} 9. dxe5 {[%emt 0:00:39]} dxe5 {[%emt 0:01:27]} 10. Rad1 {[%emt 0:00:06]} Qxd2 {[%emt 0:40:08]} 11. Rxd2 {[%emt 0:00:03]} Rfd8 {[%emt 0:00:16]} 12. Rfd1 {[%emt 0:00:11]} Rxd2 {[%emt 0:01:02]} 13. Rxd2 {[%emt 0:00:05]} a6 {[%emt 0:01:15]} 14. h3 {[%emt 0:00:47]} Bxf3 {[%emt 0:00:18]} 15. Bxf3 {[%emt 0:00:10]} Kf8 {[%emt 0:02:42]} 16. g4 {[%emt 0:05:18]} Nd4 {[%emt 0:05:12]} 17. Bg2 {[%emt 0:04:28]} Ne6 {[%emt 0:10:28]} 18. a4 {[%emt 0:06:33]} Ke8 {[%emt 0:03:04]} 19. Nd5 {[%emt 0:09:42]} Nd7 {[%emt 0:00:07]} 20. c3 {[%emt 0:01:58]} Rd8 {[%emt 0:02:02]} 21. b4 {[%emt 0:04:33]} c6 {[%emt 0:05:05]} 22. Nb6 {[%emt 0:00:03]} Nxb6 {[%emt 0:01:01]} 23. Rxd8+ {[%emt 0:00:03]} Kxd8 {[%emt 0:01:34]} 24. Bxb6+ {[%emt 0:00:03]} Kd7 {[%emt 0:00:18]} 25. h4 {[%emt 0:18:32]} h6 {[%emt 0:00:57]} 26. Kh2 {[%emt 0:02:10]} Bf6 {[%emt 0:04:49]} 27. Kg3 {[%emt 0:00:02]} g5 {[%emt 0:00:47]} 28. h5 {[%emt 0:03:29]} Bd8 {[%emt 0:00:48]} 29. Be3 {[%emt 0:00:07]} c5 {[%emt 0:01:02]} 30. Bf1 {[%emt 0:01:12]} Be7 {[%emt 0:04:18]} 31. b5 {[%emt 0:00:40]} a5 {[%emt 0:00:22]} 32. Bc4 {[%emt 0:00:40]} b6 {[%emt 0:00:23]} 33. Kf3 {[%emt 0:03:24]} f6 {[%emt 0:01:07]} 34. Ke2 {[%emt 0:00:34]} Kd6 {[%emt 0:01:27]} 35. Kd1 {[%emt 0:01:41]} Bd8 {[%emt 0:01:35]} 36. Kc2 {[%emt 0:00:24]} Nf4 {[%emt 0:00:42]} 37. Kb3 {[%emt 0:03:55]} Bc7 {[%emt 0:00:21]} 38. Bf1 {[%emt 0:06:58]} 1/2-1/2

[Event "FIDE WSTC Open 65 2025"]
[Site "Prague"]
[Date "2025.02.20"]
[Round "4.34"]
[White "Mikkelsen, Peter Jorgen Dam"]
[Black "Babula, Milan"]
[Result "1/2-1/2"]
[Annotator "NA"]
[ECO "A07"]
[WhiteElo "2112"]
[BlackElo "2077"]
[PlyCount "45"]
[EventDate "2025.02.17"]
[EventType "team-tourn"]
[EventCountry "CZE"]
[SourceTitle "playchess.com"]
[Source "ChessBase"]
[SourceQuality "1"]
[TimeControl "40/5400+30:1800+30"]

1. Nf3 {[%emt 0:00:09]} d5 {[%emt 0:00:24]} 2. g3 {[%emt 0:00:13]} c6 {[%emt 0:01:09]} 3. Bg2 {[%emt 0:00:40]} Bf5 {[%emt 0:00:07]} 4. d3 {[%emt 0:00:25]} Nf6 {[%emt 0:01:46]} 5. O-O {[%emt 0:01:00]} h6 {[%emt 0:00:24]} 6. b3 {[%emt 0:01:27]} e6 {[%emt 0:00:36]} 7. Bb2 {[%emt 0:00:11]} Be7 {[%emt 0:00:03]} 8. Nbd2 {[%emt 0:01:47]} O-O {[%emt 0:00:04]} 9. Re1 {[%emt 0:00:26]} Bh7 {[%emt 0:01:25]} 10. e4 {[%emt 0:01:26]} a5 {[%emt 0:00:51]} 11. a4 {[%emt 0:02:48]} Na6 {[%emt 0:01:55]} 12. e5 {[%emt 0:01:27]} Nd7 {[%emt 0:00:41]} 13. Qe2 {[%emt 0:02:55]} Nb4 {[%emt 0:03:48]} 14. Nf1 {[%emt 0:04:09]} b5 {[%emt 0:04:56]} 15. Ne3 {[%emt 0:11:38]} bxa4 {[%emt 0:11:01]} 16. Rxa4 {[%emt 0:01:05]} Nb6 {[%emt 0:00:25]} 17. Ra3 {[%emt 0:06:10]} a4 {[%emt 0:04:26]} 18. Rea1 {[%emt 0:05:41]} axb3 {[%emt 0:02:55]} 19. Rxb3 {[%emt 0:00:58]} Rxa1+ {[%emt 0:04:17]} 20. Bxa1 {[%emt 0:00:05]} Qa8 {[%emt 0:04:04]} 21. Rb1 {[%emt 0:05:14]} Rb8 {[%emt 0:02:54]} 22. Bc3 {[%emt 0:03:26]} Na4 {[%emt 0:14:16]} 23. Be1 {[%emt 0:00:48]} 1/2-1/2

[Event "FIDE WSTC Open 65 2025"]
[Site "Prague"]
[Date "2025.02.20"]
[Round "4.35"]
[White "Vrana, Frantisek"]
[Black "Mortensen, John"]
[Result "1-0"]
[Annotator "NA"]
[ECO "B70"]
[WhiteElo "2115"]
[BlackElo "1983"]
[PlyCount "83"]
[EventDate "2025.02.17"]
[EventType "team-tourn"]
[EventCountry "CZE"]
[SourceTitle "playchess.com"]
[Source "ChessBase"]
[SourceQuality "1"]
[TimeControl "40/5400+30:1800+30"]

1. e4 {[%emt 0:00:11]} c5 {[%emt 0:00:08]} 2. Nf3 {[%emt 0:00:06]} Nc6 {[%emt 0:00:07]} 3. Nc3 {[%emt 0:00:11]} g6 {[%emt 0:00:31]} 4. d4 {[%emt 0:00:06]} cxd4 {[%emt 0:00:19]} 5. Nxd4 {[%emt 0:00:05]} Bg7 {[%emt 0:00:12]} 6. Nde2 {[%emt 0:00:30]} Nf6 {[%emt 0:01:39]} 7. g3 {[%emt 0:00:10]} O-O {[%emt 0:07:31]} 8. Bg2 {[%emt 0:00:06]} d6 {[%emt 0:00:10]} 9. O-O {[%emt 0:00:18]} Qa5 {[%emt 0:07:53]} 10. Nd5 {[%emt 0:04:34]} Bd7 {[%emt 0:08:35]} 11. Bd2 {[%emt 0:06:25]} Qd8 {[%emt 0:01:28]} 12. a4 {[%emt 0:03:12]} Rc8 {[%emt 0:03:18]} 13. h3 {[%emt 0:05:02]} Ne5 {[%emt 0:06:48]} 14. b3 {[%emt 0:05:01]} Bc6 {[%emt 0:03:22]} 15. Be3 {[%emt 0:03:43]} b6 {[%emt 0:02:09]} 16. Nd4 {[%emt 0:03:09]} Ba8 {[%emt 0:01:38]} 17. Nb5 {[%emt 0:10:04]} Nc6 {[%emt 0:03:29]} 18. Rc1 {[%emt 0:03:21]} Nd7 {[%emt 0:01:49]} 19. c4 {[%emt 0:04:29]} a5 {[%emt 0:04:42]} 20. Rc2 {[%emt 0:06:54]} Nc5 {[%emt 0:04:10]} 21. Rd2 {[%emt 0:00:28]} Nb4 {[%emt 0:02:07]} 22. Re1 {[%emt 0:05:28]} Bxd5 {[%emt 0:06:30]} 23. exd5 {[%emt 0:00:10]} Nba6 {[%emt 0:01:03]} 24. Rde2 {[%emt 0:04:05]} Re8 {[%emt 0:02:16]} 25. Bg5 {[%emt 0:01:24]} f6 {[%emt 0:01:05]} 26. Bf4 {[%emt 0:00:27]} Qd7 {[%emt 0:01:27]} 27. h4 {[%emt 0:01:16]} Ra8 {[%emt 0:02:15]} 28. Nd4 {[%emt 0:06:25]} Nb4 {[%emt 0:03:53]} 29. Re3 {[%emt 0:02:51]} f5 {[%emt 0:01:46]} 30. Nc6 {[%emt 0:00:33]} Bf6 {[%emt 0:00:27]} 31. Qd2 {[%emt 0:02:00]} Nca6 {[%emt 0:04:49]} 32. Re6 {[%emt 0:01:43]} Nc5 {[%emt 0:02:10]} 33. R6e3 {[%emt 0:03:28]} Nca6 {[%emt 0:01:31]} 34. h5 {[%emt 0:01:31]} Qc7 {[%emt 0:01:28]} 35. Re6 {[%emt 0:00:29]} Qd7 {[%emt 0:03:25]} 36. g4 {[%emt 0:01:55]} fxg4 {[%emt 0:01:50]} 37. hxg6 {[%emt 0:00:35]} hxg6 {[%emt 0:00:23]} 38. Qe2 {[%emt 0:02:11]} Nc7 {[%emt 0:02:39]} 39. Qxg4 {[%emt 0:01:09]} Kf8 {[%emt 0:06:30]} 40. Qxg6 {[%emt 0:00:24]} Nxc6 {[%emt 0:00:08]} 41. Bh6+ {[%emt 0:30:08]} Bg7 {[%emt 0:30:09]} 42. Qxg7# {[%emt 0:00:12]} 1-0

[Event "FIDE WSTC Open 65 2025"]
[Site "Prague"]
[Date "2025.02.20"]
[Round "4.36"]
[White "Cordes, Steffen"]
[Black "Cesal, Jaroslav"]
[Result "1/2-1/2"]
[Annotator "NA"]
[ECO "B35"]
[WhiteElo "1943"]
[BlackElo "2049"]
[PlyCount "34"]
[EventDate "2025.02.17"]
[EventType "team-tourn"]
[EventCountry "CZE"]
[SourceTitle "playchess.com"]
[Source "ChessBase"]
[SourceQuality "1"]
[TimeControl "40/5400+30:1800+30"]

1. e4 {[%emt 0:00:04]} c5 {[%emt 0:00:07]} 2. Nc3 {[%emt 0:00:07]} g6 {[%emt 0:00:04]} 3. Nf3 {[%emt 0:00:15]} Bg7 {[%emt 0:00:11]} 4. d4 {[%emt 0:00:06]} cxd4 {[%emt 0:00:14]} 5. Nxd4 {[%emt 0:00:06]} Nc6 {[%emt 0:00:13]} 6. Be3 {[%emt 0:00:06]} Nf6 {[%emt 0:00:29]} 7. Bc4 {[%emt 0:00:09]} Ng4 {[%emt 0:03:16]} 8. Qxg4 {[%emt 0:01:35]} Nxd4 {[%emt 0:00:28]} 9. Qd1 {[%emt 0:00:15]} Ne6 {[%emt 0:01:00]} 10. Qd2 {[%emt 0:06:28]} d6 {[%emt 0:02:27]} 11. O-O-O {[%emt 0:09:42]} Bd7 {[%emt 0:01:19]} 12. Kb1 {[%emt 0:09:20]} Rc8 {[%emt 0:05:32]} 13. Bb3 {[%emt 0:01:45]} Qa5 {[%emt 0:02:13]} 14. Nd5 {[%emt 0:05:45]} Qxd2 {[%emt 0:00:39]} 15. Rxd2 {[%emt 0:02:43]} Nc5 {[%emt 0:03:56]} 16. f3 {[%emt 0:00:58]} h6 {[%emt 0:07:31]} 17. Bd4 {[%emt 0:06:01]} Bxd4 {[%emt 0:08:59]} 1/2-1/2

[Event "FIDE WSTC Open 65 2025"]
[Site "Prague"]
[Date "2025.02.20"]
[Round "4.37"]
[White "Heinig, Wolfram"]
[Black "Primbetov, Marat"]
[Result "1/2-1/2"]
[Annotator "ChessBase"]
[ECO "A45"]
[WhiteElo "2204"]
[BlackElo "2103"]
[PlyCount "36"]
[EventDate "2025.02.17"]
[EventType "team-tourn"]
[EventCountry "CZE"]
[SourceTitle "playchess.com"]
[Source "ChessBase"]
[SourceQuality "1"]
[TimeControl "40/5400+30:1800+30"]

1. d4 {[%emt 0:00:15]} Nf6 {[%emt 0:00:09]} 2. Bg5 {[%emt 0:00:30]} e6 {[%emt 0:04:34]} 3. e4 {[%emt 0:01:15]} Be7 {[%emt 0:01:08]} 4. e5 {[%emt 0:03:30]} Nd5 {[%emt 0:00:11]} 5. Bxe7 {[%emt 0:01:21]} Qxe7 {[%emt 0:00:55]} 6. c4 {[%emt 0:00:30]} Nb6 {[%emt 0:00:50]} 7. Nc3 {[%emt 0:01:04]} d6 {[%emt 0:00:40]} 8. exd6 {[%emt 0:00:45]} cxd6 {[%emt 0:01:38]} 9. Nf3 {[%emt 0:00:13]} Nc6 {[%emt 0:01:32]} 10. Bd3 {[%emt 0:01:50]} e5 {[%emt 0:21:43]} 11. O-O {[%emt 0:12:24]} O-O {[%emt 0:03:00]} 12. Re1 {[%emt 0:14:20]} Bg4 {[%emt 0:01:35]} 13. dxe5 {[%emt 0:07:21]} Nxe5 {[%emt 0:09:16]} 14. Be2 {[%emt 0:15:20]} Bxf3 {[%emt 0:09:48]} 15. Bxf3 {[%emt 0:00:10]} Nbxc4 {[%emt 0:00:21]} 16. Be4 {[%emt 0:02:27]} Qh4 {[%emt 0:06:42]} 17. g3 {[%emt 0:02:01]} Qh6 {[%emt 0:01:47]} 18. b3 {[%emt 0:13:15]} Na5 {[%emt 0:09:28]} 1/2-1/2

[Event "FIDE WSTC Open 65 2025"]
[Site "Prague"]
[Date "2025.02.20"]
[Round "4.38"]
[White "Nasybullin, Vladislav"]
[Black "Volkmer, Andreas"]
[Result "0-1"]
[Annotator "RC"]
[ECO "A36"]
[WhiteElo "2339"]
[BlackElo "2173"]
[PlyCount "88"]
[EventDate "2025.02.17"]
[EventType "team-tourn"]
[EventCountry "CZE"]
[SourceTitle "playchess.com"]
[Source "ChessBase"]
[SourceQuality "1"]
[TimeControl "40/5400+30:1800+30"]

1. c4 {[%emt 0:00:07]} g6 {[%emt 0:00:11]} 2. Nc3 {[%emt 0:00:13]} Bg7 {[%emt 0:00:06]} 3. g3 {[%emt 0:00:22]} d6 {[%emt 0:00:14]} 4. Bg2 {[%emt 0:00:20]} c5 {[%emt 0:00:05]} 5. e3 {[%emt 0:00:42]} Nc6 {[%emt 0:01:08]} 6. Nge2 {[%emt 0:00:32]} h5 {[%emt 0:03:54]} 7. h3 {[%emt 0:01:38]} Nf6 {[%emt 0:01:37]} 8. O-O {[%emt 0:01:09]} Bd7 {[%emt 0:05:51]} 9. d4 {[%emt 0:05:50]} cxd4 {[%emt 0:07:34]} 10. exd4 {[%emt 0:00:42]} O-O {[%emt 0:03:49]} 11. Re1 {[%emt 0:03:09]} Bf5 {[%emt 0:03:10]} 12. Qa4 {[%emt 0:21:24]} Rc8 {[%emt 0:15:33]} 13. Be3 {[%emt 0:03:12]} Na5 {[%emt 0:12:28]} 14. b3 {[%emt 0:01:00]} a6 {[%emt 0:11:16]} 15. Rac1 {[%emt 0:02:55]} Bd7 {[%emt 0:06:23]} 16. Qb4 {[%emt 0:01:41]} Nc6 {[%emt 0:06:38]} 17. Qa3 {[%emt 0:01:18]} Rb8 {[%emt 0:03:28]} 18. Red1 {[%emt 0:06:13]} a5 {[%emt 0:04:06]} 19. Qb2 {[%emt 0:01:20]} Bf5 {[%emt 0:00:58]} 20. a3 {[%emt 0:03:21]} Nh7 {[%emt 0:02:52]} 21. f4 {[%emt 0:01:50]} Qc8 {[%emt 0:01:31]} 22. d5 {[%emt 0:01:51]} Nd8 {[%emt 0:00:05]} 23. Kh2 {[%emt 0:00:07]} Nf6 {[%emt 0:00:22]} 24. Qd2 {[%emt 0:03:21]} Re8 {[%emt 0:00:17]} 25. Nd4 {[%emt 0:00:47]} Bd7 {[%emt 0:00:01]} 26. Ncb5 {[%emt 0:03:44]} Ra8 {[%emt 0:02:21]} 27. Re1 {[%emt 0:00:25]} Ra6 {[%emt 0:00:31]} 28. Bf2 {[%emt 0:00:42]} Bf5 {[%emt 0:01:06]} 29. Nxf5 {[%emt 0:00:20]} gxf5 {[%emt 0:00:11]} 30. Bf3 {[%emt 0:03:45]} Qd7 {[%emt 0:01:24]} 31. Bd4 {[%emt 0:02:15]} Ra8 {[%emt 0:02:14]} 32. Bb6 {[%emt 0:01:58]} Rc8 {[%emt 0:02:22]} 33. Bxa5 {[%emt 0:00:18]} e6 {[%emt 0:00:23]} 34. dxe6 {[%emt 0:00:18]} Rxe6 {[%emt 0:00:12]} 35. Rxe6 {[%emt 0:00:21]} Nxe6 {[%emt 0:00:11]} 36. Nxd6 {[%emt 0:01:43]} Ra8 {[%emt 0:00:35]} 37. c5 {[%emt 0:01:40]} h4 {[%emt 0:00:50]} 38. Nxf5 {[%emt 0:02:57]} hxg3+ {[%emt 0:00:20]} 39. Kxg3 {[%emt 0:00:07]} Rxa5 {[%emt 0:02:56]} 40. Qxa5 {[%emt 0:01:07]} Qd3 {[%emt 0:00:01]} 41. Ne7+ {[%emt 0:36:43]} Kh7 {[%emt 0:21:03]} 42. c6 {[%emt 0:00:00]} Nd4 {[%emt 0:00:57]} 43. Qe5 {[%emt 0:00:00]} Qxf3+ {[%emt 0:01:02]} 44. Kh2 {[%emt 0:00:00]} Ng4+ {[%emt 0:00:41]} 0-1

[Event "FIDE WSTC Open 65 2025"]
[Site "Prague"]
[Date "2025.02.20"]
[Round "4.39"]
[White "Schulz, Michael"]
[Black "Baimurzin, Aitkazy"]
[Result "0-1"]
[Annotator "ChessBase"]
[ECO "B06"]
[WhiteElo "2115"]
[BlackElo "1997"]
[PlyCount "72"]
[EventDate "2025.02.17"]
[EventType "team-tourn"]
[EventCountry "CZE"]
[SourceTitle "playchess.com"]
[Source "ChessBase"]
[SourceQuality "1"]
[TimeControl "40/5400+30:1800+30"]

1. d4 {[%emt 0:00:03]} d6 {[%emt 0:00:23]} 2. e4 {[%emt 0:00:18]} Nf6 {[%emt 0:00:57]} 3. Nc3 {[%emt 0:00:07]} a6 {[%emt 0:01:36]} 4. a4 {[%emt 0:00:24]} g6 {[%emt 0:00:37]} 5. Be2 {[%emt 0:00:59]} Bg7 {[%emt 0:00:29]} 6. h3 {[%emt 0:02:01]} O-O {[%emt 0:02:36]} 7. Nf3 {[%emt 0:00:12]} b6 {[%emt 0:04:49]} 8. Bg5 {[%emt 0:05:58]} Bb7 {[%emt 0:05:00]} 9. e5 {[%emt 0:07:48]} Nfd7 {[%emt 0:04:49]} 10. exd6 {[%emt 0:02:26]} cxd6 {[%emt 0:00:21]} 11. Qd2 {[%emt 0:01:52]} Re8 {[%emt 0:03:35]} 12. O-O {[%emt 0:01:48]} Nf6 {[%emt 0:05:44]} 13. Bh6 {[%emt 0:02:30]} Bh8 {[%emt 0:01:36]} 14. Rad1 {[%emt 0:02:33]} Nbd7 {[%emt 0:01:57]} 15. Ng5 {[%emt 0:03:59]} Qc7 {[%emt 0:05:44]} 16. f4 {[%emt 0:02:31]} e6 {[%emt 0:03:07]} 17. Bf3 {[%emt 0:05:39]} d5 {[%emt 0:12:08]} 18. g4 {[%emt 0:07:21]} Rad8 {[%emt 0:05:23]} 19. Bg2 {[%emt 0:07:31]} Bc6 {[%emt 0:05:59]} 20. f5 {[%emt 0:02:43]} e5 {[%emt 0:06:45]} 21. Nxf7 {[%emt 0:04:37]} Kxf7 {[%emt 0:02:09]} 22. fxg6+ {[%emt 0:00:13]} hxg6 {[%emt 0:03:30]} 23. g5 {[%emt 0:05:11]} e4 {[%emt 0:07:12]} 24. gxf6 {[%emt 0:01:15]} Re6 {[%emt 0:02:35]} 25. Bf4 {[%emt 0:00:48]} Qa7 {[%emt 0:03:17]} 26. Be5 {[%emt 0:03:18]} Bxf6 {[%emt 0:03:59]} 27. Qh6 {[%emt 0:00:58]} Rg8 {[%emt 0:01:25]} 28. h4 {[%emt 0:05:08]} Nxe5 {[%emt 0:02:31]} 29. dxe5 {[%emt 0:13:52]} b5+ {[%emt 0:00:28]} 30. Kh1 {[%emt 0:00:58]} Rxe5 {[%emt 0:00:24]} 31. Nxe4 {[%emt 0:02:07]} dxe4 {[%emt 0:00:55]} 32. Rd6 {[%emt 0:00:40]} Re6 {[%emt 0:01:08]} 33. Qf4 {[%emt 0:01:38]} Qe7 {[%emt 0:00:49]} 34. Rfd1 {[%emt 0:02:46]} Rh8 {[%emt 0:01:07]} 35. Rxe6 {[%emt 0:00:32]} Qxe6 {[%emt 0:00:24]} 36. Qc7+ {[%emt 0:00:32]} Be7 {[%emt 0:00:28]} 0-1